bitfinex/quotes_BTCUSD_20251011
["timestamp","ask_amount","ask_price","bid_price","bid_amount"]
[1760147997229,0.41077534,111580.0,111540.0,0.14849565]
[1760147997436,0.4,111580.0,111540.0,0.14849565]
[1760147997615,0.01077534,111570.0,111540.0,0.04913565]
[1760147998031,0.89565389,111570.0,111540.0,0.04913565]
[1760147998373,0.88487855,111570.0,111540.0,0.04913565]
[1760147998516,0.01077534,111560.0,111540.0,0.00013565]
[1760147998715,0.00870902,111560.0,111540.0,0.00013565]
[1760147999118,0.00870902,111560.0,111540.0,0.04913565]
[1760147999715,0.00870902,111560.0,111540.0,0.00013565]
[1760148000160,0.00870902,111560.0,111540.0,0.04913565]
[1760148000368,0.00870902,111560.0,111540.0,0.00013565]
[1760148000880,0.40870902,111560.0,111540.0,0.00013565]
[1760148001091,0.4,111560.0,111540.0,0.00013565]
[1760148001736,0.88487855,111570.0,111540.0,0.04913565]
[1760148002309,0.88487855,111570.0,111540.0,0.04962523]
[1760148002714,0.40870902,111560.0,111540.0,0.00013565]
[1760148002878,0.4,111560.0,111540.0,0.00013565]
[1760148003327,0.88487855,111570.0,111540.0,0.14849565]
[1760148003480,0.00714923,111560.0,111540.0,0.04913565]
[1760148003692,0.4,111560.0,111540.0,0.00013565]
[1760148004866,0.00414923,111550.0,111540.0,0.00013565]
[1760148005080,0.88902778,111550.0,111540.0,0.00013565]
[1760148005284,0.88487855,111550.0,111540.0,0.00013565]
[1760148005918,0.88487855,111550.0,111540.0,0.11358565]
[1760148006138,0.88487855,111550.0,111540.0,0.00013565]
[1760148007174,0.88487855,111550.0,111540.0,0.06458565]
[1760148007383,0.88487855,111590.0,111550.0,0.3701519]
[1760148007619,0.88487855,111590.0,111580.0,0.11345]
[1760148007845,0.94629085,111610.0,111580.0,0.11345]
[1760148008290,0.93346953,111610.0,111580.0,0.11345]
[1760148008534,0.00414923,111600.0,111580.0,0.11345]
[1760148008822,1.35531039,111630.0,111590.0,0.04931]
[1760148009038,0.88487855,111620.0,111590.0,0.04931]
[1760148009264,0.88487855,111620.0,111590.0,0.05003063]
[1760148009508,0.00414923,111610.0,111590.0,0.04931]
[1760148010945,0.88487855,111620.0,111600.0,0.04931]
[1760148011350,0.00414923,111610.0,111590.0,0.04931]
[1760148011575,0.88587855,111620.0,111600.0,0.11056]
[1760148011777,0.88487855,111620.0,111600.0,0.04931]
[1760148011997,0.88487855,111630.0,111600.0,0.0447344]
[1760148012166,0.88487855,111630.0,111610.0,0.20327]
[1760148012371,0.90487855,111640.0,111610.0,0.11056]
[1760148012727,0.40414923,111630.0,111590.0,0.04931]
[1760148012881,0.47043184,111630.0,111580.0,0.04913565]
[1760148013485,0.4,111620.0,111580.0,0.00013565]
[1760148013680,0.88487855,111620.0,111580.0,0.00013565]
[1760148013897,1.28487855,111620.0,111580.0,0.04944565]
[1760148014483,1.28487855,111620.0,111580.0,0.00013565]
[1760148016114,0.88487855,111620.0,111580.0,0.00013565]
[1760148016606,1.28487855,111620.0,111580.0,0.04944565]
[1760148016817,0.88487855,111620.0,111590.0,0.14202]
[1760148017034,0.88487855,111620.0,111600.0,0.04931]
[1760148017444,0.88487855,111620.0,111600.0,0.14202]
[1760148017655,0.90487855,111640.0,111610.0,0.20327]
[1760148017870,0.90487855,111640.0,111610.0,0.11056]
[1760148018075,0.90487855,111640.0,111620.0,0.04931]
[1760148018745,0.90487855,111640.0,111600.0,0.04931]
[1760148018948,0.90487855,111640.0,111610.0,0.04931]
[1760148019155,0.90538296,111640.0,111610.0,0.14202]
[1760148019359,0.90538296,111640.0,111620.0,0.04931]
[1760148019559,0.90538296,111640.0,111610.0,0.04931]
[1760148019767,0.02050441,111640.0,111630.0,0.06125]
[1760148019967,0.02050441,111640.0,111630.0,0.11056]
[1760148020175,0.01760935,111640.0,111630.0,0.11056]
[1760148020400,0.01760935,111640.0,111630.0,0.2334219]
[1760148020693,0.01155,111680.0,111630.0,0.5734219]
[1760148020894,0.01155,111690.0,111670.0,0.04931]
[1760148021098,0.01155,111690.0,111680.0,0.04931]
[1760148021286,0.01155,111690.0,111680.0,0.11056]
[1760148021686,0.90468035,111700.0,111680.0,0.11056]
[1760148021881,0.90468035,111700.0,111690.0,0.04931]
[1760148022132,0.00840316,111700.0,111690.0,0.20327]
[1760148022301,0.00015136,111700.0,111690.0,0.20327]
[1760148022940,0.00015136,111700.0,111690.0,0.2334219]
[1760148023159,0.00015136,111700.0,111690.0,0.11056]
[1760148023371,0.03018136,111700.0,111670.0,0.04931]
[1760148023583,0.03843316,111700.0,111670.0,0.04931]
[1760148023784,0.01155,111690.0,111650.0,0.0794619]
[1760148024029,0.01155,111680.0,111650.0,0.1721719]
[1760148024439,0.0231,111680.0,111650.0,0.0794619]
[1760148024671,0.0313518,111680.0,111650.0,0.04931]
[1760148024874,0.01848,111660.0,111640.0,0.04931]
[1760148025082,0.01848,111660.0,111630.0,0.04931]
[1760148025294,0.03003,111660.0,111630.0,0.04931]
[1760148025501,0.01848,111660.0,111630.0,0.14202]
[1760148025707,0.00820252,111670.0,111640.0,0.14202]
[1760148025923,0.90463107,111680.0,111650.0,0.04931]
[1760148026126,0.12401,111670.0,111640.0,0.06164]
[1760148026332,0.03285252,111670.0,111650.0,0.04931]
[1760148026535,0.00820252,111670.0,111660.0,0.1407119]
[1760148026743,0.00820252,111680.0,111670.0,0.0301519]
[1760148026976,0.00820252,111690.0,111670.0,0.1407119]
[1760148027164,0.00820252,111690.0,111680.0,0.04931]
[1760148027165,0.00015133,111690.0,111680.0,0.04931]
[1760148027699,0.00015133,111690.0,111680.0,0.1407119]
[1760148028123,0.00015133,111690.0,111680.0,0.2334219]
[1760148028326,0.11729184,111720.0,111680.0,0.22826999]
[1760148028548,0.02588,111710.0,111690.0,0.0794619]
[1760148028717,0.04686,111730.0,111700.0,0.11056]
[1760148028973,0.02682,111720.0,111700.0,0.04931]
[1760148029176,0.11927,111710.0,111690.0,0.0794619]
[1760148029385,0.04712,111710.0,111690.0,0.0794619]
[1760148029587,0.04712,111710.0,111680.0,0.04931]
[1760148029588,0.04686,111700.0,111680.0,0.04931]
[1760148029769,0.11973,111700.0,111680.0,0.04931]
[1760148029997,0.04686,111690.0,111680.0,0.0301519]
[1760148030198,0.11974,111690.0,111660.0,0.04931]
[1760148030402,0.11974,111690.0,111660.0,0.14202]
[1760148030608,0.04288476,111690.0,111660.0,0.14202]
[1760148030809,0.11503476,111690.0,111660.0,0.14202]
[1760148031259,0.09897,111680.0,111660.0,0.04946133]
[1760148031522,0.11883,111670.0,111660.0,0.00015133]
[1760148032356,0.04784,111670.0,111660.0,0.00015133]
[1760148032567,0.02727,111680.0,111660.0,0.00015133]
[1760148032746,0.04854,111670.0,111660.0,0.00015133]
[1760148033173,0.04686,111670.0,111660.0,0.00015133]
[1760148033709,0.04923,111670.0,111660.0,0.00015133]
[1760148034306,0.09689,111680.0,111660.0,0.00015133]
[1760148034522,0.09689,111680.0,111660.0,0.14217133]
[1760148034523,0.02727,111680.0,111660.0,0.14217133]
[1760148034756,0.04712,111670.0,111660.0,0.00015133]
[1760148034963,0.02727,111680.0,111670.0,0.06125]
[1760148035198,0.88487855,111690.0,111670.0,0.20327]
[1760148035639,0.02782,111680.0,111660.0,0.04946133]
[1760148035787,0.93173855,111690.0,111670.0,0.04931]
[1760148035988,0.09013,111680.0,111660.0,0.03030323]
[1760148036190,0.09013,111680.0,111660.0,0.07961323]
[1760148036619,0.09058,111680.0,111660.0,0.04946133]
[1760148036952,0.04636,111670.0,111650.0,0.03540594]
[1760148037244,0.04654,111660.0,111640.0,0.04931]
[1760148038475,0.10637,111660.0,111640.0,0.04931]
[1760148038884,0.10718,111650.0,111620.0,0.04931]
[1760148039134,0.04451,111640.0,111620.0,0.04981441]
[1760148039559,0.93336855,111650.0,111620.0,0.14583441]
[1760148039769,0.04849,111640.0,111620.0,0.04981441]
[1760148040040,0.98797855,111650.0,111620.0,0.14583441]
[1760148040254,0.88487855,111650.0,111630.0,0.20664]
[1760148040453,0.88487855,111650.0,111640.0,0.04631]
[1760148040661,0.98584855,111670.0,111640.0,0.2367919]
[1760148040864,0.89311652,111670.0,111650.0,0.14233]
[1760148041069,0.89311652,111670.0,111660.0,0.11062]
[1760148041294,0.00823797,111670.0,111660.0,0.11062]
[1760148041522,0.94160652,111680.0,111660.0,0.11062]
[1760148041718,0.00823797,111680.0,111660.0,0.20664]
[1760148041928,0.05672797,111690.0,111670.0,0.04631]
[1760148042134,0.05672797,111690.0,111660.0,0.14233]
[1760148042340,0.14826921,111690.0,111660.0,0.14233]
[1760148042557,0.10257,111680.0,111660.0,0.04631]
[1760148042786,0.10962692,111680.0,111650.0,0.04631]
[1760148042984,0.13705,111670.0,111650.0,0.04631]
[1760148043198,0.04666046,111660.0,111640.0,0.04631]
[1760148043407,0.05489843,111660.0,111640.0,0.04631]
[1760148043614,0.05489843,111660.0,111640.0,0.14233]
[1760148043833,0.13640046,111660.0,111630.0,0.04631]
[1760148044048,0.13824,111650.0,111620.0,0.04631]
[1760148044276,0.09846,111640.0,111610.0,0.04631]
[1760148044469,0.04628,111620.0,111600.0,0.04631]
[1760148044893,0.13743,111610.0,111570.0,0.04631]
[1760148045143,0.01078,111600.0,111570.0,0.14233]
[1760148045330,0.01078,111600.0,111580.0,0.04631]
[1760148045725,0.04829,111610.0,111590.0,0.11062]
[1760148045934,0.04829,111610.0,111590.0,0.04631]
[1760148046141,0.93115855,111620.0,111590.0,0.14233]
[1760148046346,0.04416,111610.0,111590.0,0.04631]
[1760148046558,0.04416,111610.0,111580.0,0.04631]
[1760148046813,0.04416,111610.0,111590.0,0.04631]
[1760148047219,0.13508,111610.0,111580.0,0.04631]
[1760148047415,0.10324,111600.0,111570.0,0.04681441]
[1760148047634,0.98811855,111600.0,111570.0,0.14283441]
[1760148047850,0.88487855,111600.0,111580.0,0.04631]
[1760148048049,0.88487855,111600.0,111590.0,0.04631]
[1760148048811,0.88487855,111600.0,111590.0,0.11062]
[1760148049013,0.88487855,111600.0,111590.0,0.2367919]
[1760148049227,0.93115855,111620.0,111590.0,0.2367919]
[1760148049433,0.88487855,111620.0,111610.0,0.04516]
[1760148049628,0.88487855,111640.0,111610.0,0.20791]
[1760148049829,0.88487855,111640.0,111620.0,0.04516]
[1760148050028,0.88487855,111640.0,111620.0,0.14347]
[1760148050637,0.92172855,111640.0,111620.0,0.04566441]
[1760148050832,0.88487855,111640.0,111630.0,0.04516]
[1760148051035,0.88487855,111640.0,111630.0,0.1096]
[1760148051656,0.88487855,111640.0,111630.0,0.20791]
[1760148052033,0.90039855,111660.0,111630.0,0.20791]
[1760148052231,0.04652,111670.0,111650.0,0.04516]
[1760148052457,0.0547774,111670.0,111650.0,0.04516]
[1760148052726,0.0082574,111670.0,111660.0,0.04516]
[1760148052965,0.93059595,111680.0,111660.0,0.1096]
[1760148053371,0.89313595,111680.0,111670.0,0.04516]
[1760148053546,0.0082574,111680.0,111670.0,0.2380619]
[1760148053747,0.89313595,111700.0,111670.0,0.2380619]
[1760148053974,0.00840867,111700.0,111690.0,0.04516]
[1760148054230,0.00015127,111700.0,111690.0,0.23222612]
[1760148054417,0.00015127,111700.0,111690.0,0.57222612]
[1760148055202,0.00015127,111700.0,111690.0,0.23322612]
[1760148055401,0.00015127,111700.0,111690.0,0.04032422]
[1760148055735,0.2,111690.0,111680.0,0.0753119]
[1760148056066,0.2082574,111690.0,111670.0,0.04516]
[1760148056265,0.2082574,111690.0,111670.0,0.16268639]
[1760148056473,0.2082574,111690.0,111670.0,0.04516]
[1760148056673,0.2082574,111690.0,111670.0,0.14347]
[1760148056882,0.2082574,111690.0,111670.0,0.04516]
[1760148057287,0.2310574,111690.0,111670.0,0.04516]
[1760148057498,0.2082574,111690.0,111680.0,0.04616]
[1760148057701,0.2082574,111690.0,111680.0,0.20809719]
[1760148057905,0.2082574,111690.0,111680.0,0.20791]
[1760148058131,0.2082574,111690.0,111680.0,0.1096]
[1760148058333,0.2082574,111690.0,111670.0,0.14447]
[1760148058334,0.3384074,111690.0,111670.0,0.001]
[1760148058474,0.0079705,111660.0,111650.0,0.14347]
[1760148058677,0.0129705,111660.0,111650.0,0.04516]
[1760148058915,0.0129705,111660.0,111650.0,0.1096]
[1760148059089,0.0382305,111660.0,111640.0,0.04516]
[1760148059692,0.0363005,111660.0,111640.0,0.04516]
[1760148059891,0.13113,111650.0,111620.0,0.06916397]
[1760148060114,0.13113,111650.0,111620.0,0.16319529]
[1760148060540,0.10952,111650.0,111620.0,0.16319529]
[1760148060963,0.13113,111650.0,111620.0,0.06488529]
[1760148061127,0.04627,111640.0,111620.0,0.04566441]
[1760148061310,0.04627,111640.0,111620.0,0.00150441]
[1760148061522,0.13075,111630.0,111620.0,0.00150441]
[1760148061765,0.04627,111640.0,111620.0,0.00150441]
[1760148062164,0.13704,111630.0,111620.0,0.00050441]
[1760148062378,1.02191855,111630.0,111620.0,0.00150441]
[1760148063063,1.02192855,111630.0,111620.0,0.00150441]
[1760148063667,0.93877855,111630.0,111620.0,0.00050441]
[1760148063889,1.02192855,111630.0,111620.0,0.00050441]
[1760148064545,0.9434749,111630.0,111620.0,0.00050441]
[1760148064721,0.8895749,111630.0,111620.0,0.00050441]
[1760148065254,0.9369949,111630.0,111620.0,0.00050441]
[1760148065460,0.9360949,111630.0,111620.0,0.00050441]
[1760148065920,0.8895749,111630.0,111620.0,0.00050441]
[1760148066090,0.9990949,111630.0,111620.0,0.00050441]
[1760148066268,1.0271749,111630.0,111620.0,0.00050441]
[1760148067300,0.8895749,111630.0,111620.0,0.00050441]
[1760148067805,0.8895749,111630.0,111620.0,0.11010441]
[1760148067992,0.8895749,111630.0,111620.0,0.00050441]
[1760148068197,0.8895749,111630.0,111620.0,0.04946441]
[1760148068835,0.8895749,111630.0,111620.0,0.00050441]
[1760148068836,1.0269149,111630.0,111620.0,0.00050441]
[1760148069198,0.9354749,111630.0,111620.0,0.00050441]
[1760148069450,0.8895749,111630.0,111620.0,0.04946441]
[1760148069789,0.8895749,111630.0,111620.0,0.00050441]
[1760148069982,1.0269149,111630.0,111620.0,0.00050441]
[1760148070187,0.9354749,111630.0,111620.0,0.00050441]
[1760148070551,1.0263049,111630.0,111620.0,0.00050441]
[1760148071553,0.9354749,111630.0,111620.0,0.00050441]
[1760148071767,0.8895749,111630.0,111620.0,0.00050441]
[1760148071974,0.9354749,111630.0,111620.0,0.00050441]
[1760148072384,0.8895749,111630.0,111620.0,0.04946441]
[1760148073002,0.8895749,111630.0,111620.0,0.20493441]
[1760148073203,0.8895749,111630.0,111620.0,0.23508631]
[1760148073417,0.2,111640.0,111630.0,0.0301519]
[1760148073643,0.2,111640.0,111630.0,0.1741819]
[1760148073850,0.2,111640.0,111630.0,0.2345819]
[1760148075076,0.2,111640.0,111630.0,0.23278338]
[1760148075281,0.2,111640.0,111630.0,0.13771338]
[1760148075483,0.2,111640.0,111630.0,0.04896]
[1760148075687,0.2,111640.0,111630.0,0.20443]
[1760148075805,0.2,111640.0,111630.0,0.10936]
[1760148076014,0.2,111640.0,111630.0,0.04896]
[1760148076614,0.2,111640.0,111630.0,0.08436]
[1760148076850,0.2,111640.0,111630.0,0.02396]
[1760148077055,0.2,111640.0,111630.0,0.17943]
[1760148077258,0.2,111640.0,111630.0,0.2095819]
[1760148080111,0.2,111640.0,111630.0,0.25382569]
[1760148080314,0.2,111640.0,111630.0,0.69382568]
[1760148080738,0.2,111640.0,111630.0,0.71782965]
[1760148080942,0.2,111640.0,111630.0,0.61782966]
[1760148081234,0.2,111640.0,111630.0,0.69282966]
[1760148081442,0.2,111640.0,111630.0,0.71782965]
[1760148081649,0.2,111640.0,111630.0,0.25282967]
[1760148081856,0.2,111640.0,111630.0,0.2288257]
[1760148082339,0.2,111640.0,111630.0,0.17943]
[1760148082744,0.2,111640.0,111630.0,0.08436]
[1760148082927,0.2,111640.0,111630.0,0.08452]
[1760148083124,0.2,111640.0,111630.0,0.17959]
[1760148083323,0.2,111640.0,111630.0,0.19883251]
[1760148083527,0.2,111640.0,111630.0,0.22898441]
[1760148083742,0.2,111640.0,111630.0,0.2097419]
[1760148085124,0.2,111640.0,111630.0,0.20794354]
[1760148085953,0.2,111640.0,111630.0,0.11287354]
[1760148086539,0.2,111640.0,111630.0,0.20794354]
[1760148086746,0.25263,111640.0,111620.0,0.04946441]
[1760148086944,1.22706855,111640.0,111620.0,0.04946441]
[1760148087110,1.22706855,111640.0,111630.0,0.08272]
[1760148087111,1.08487855,111640.0,111630.0,0.08272]
[1760148087310,0.2,111640.0,111630.0,0.2079419]
[1760148087751,0.2,111640.0,111630.0,0.1128719]
[1760148087966,0.2,111640.0,111630.0,0.0524719]
[1760148088152,0.34275,111640.0,111620.0,0.04946441]
[1760148088339,0.3082,111640.0,111620.0,0.04946441]
[1760148088541,0.2459,111640.0,111620.0,0.04946441]
[1760148088744,0.2,111640.0,111630.0,0.08272]
[1760148089036,0.2,111640.0,111630.0,0.2079419]
[1760148090812,0.2,111640.0,111630.0,0.5479419]
[1760148091014,0.2,111640.0,111630.0,0.57194587]
[1760148091230,0.2,111640.0,111630.0,0.5479419]
[1760148091632,0.2,111640.0,111630.0,0.57194587]
[1760148094537,0.2,111640.0,111630.0,0.5479419]
[1760148094746,0.2,111640.0,111630.0,0.02232]
[1760148094950,0.2,111640.0,111630.0,0.08272]
[1760148095177,0.2548,111640.0,111620.0,0.04946441]
[1760148095381,0.344,111640.0,111620.0,0.04946441]
[1760148095590,0.0459,111630.0,111620.0,0.00050441]
[1760148096043,0.1448,111630.0,111620.0,0.00050441]
[1760148096763,0.05639,111630.0,111620.0,0.00050441]
[1760148096970,0.14401,111630.0,111620.0,0.00050441]
[1760148097173,1.02888855,111630.0,111620.0,0.00050441]
[1760148097333,1.42888855,111630.0,111620.0,0.00050441]
[1760148098920,1.47725245,111630.0,111620.0,0.00050441]
[1760148099125,1.45292931,111630.0,111620.0,0.00050441]
[1760148099351,1.45136662,111630.0,111620.0,0.00050441]
[1760148099849,1.42732586,111630.0,111620.0,0.00050441]
[1760148100686,1.02732586,111630.0,111620.0,0.00050441]
[1760148100887,1.42732586,111630.0,111620.0,0.00050441]
[1760148101307,1.02732586,111630.0,111620.0,0.00050441]
[1760148101739,0.88487855,111630.0,111620.0,0.04622441]
[1760148101956,0.93897855,111630.0,111620.0,0.00050441]
[1760148102380,1.42576855,111630.0,111620.0,0.00050441]
[1760148102823,1.02576855,111630.0,111620.0,0.00050441]
[1760148103276,1.02572376,111630.0,111620.0,0.00050441]
[1760148103675,0.93893376,111630.0,111600.0,0.00340441]
[1760148103908,0.93893376,111630.0,111600.0,0.0301519]
[1760148103909,0.93943786,111630.0,111600.0,0.0301519]
[1760148104108,1.03725786,111630.0,111600.0,0.0301519]
[1760148104313,0.0498,111610.0,111600.0,0.0301519]
[1760148104782,0.11188,111610.0,111600.0,0.0301519]
[1760148104992,1.09457855,111610.0,111590.0,0.02855]
[1760148105203,0.05159906,111600.0,111580.0,0.04572]
[1760148105410,0.14941906,111600.0,111580.0,0.04572]
[1760148105619,0.11188,111590.0,111580.0,0.04572]
[1760148105837,0.2097,111590.0,111550.0,0.02400397]
[1760148106047,0.14762,111580.0,111530.0,0.05609137]
[1760148106259,0.14762,111580.0,111530.0,0.0002]
[1760148106460,0.0498,111570.0,111530.0,0.0002]
[1760148106671,0.0498,111580.0,111530.0,0.10019999]
[1760148106881,0.0498,111570.0,111530.0,0.00033565]
[1760148107117,0.0498,111580.0,111540.0,0.34]
[1760148107385,0.88487855,111590.0,111550.0,0.0301519]
[1760148107595,0.05159906,111600.0,111550.0,0.0301519]
[1760148107811,0.14762,111590.0,111550.0,0.0301519]
[1760148108019,0.14762,111580.0,111540.0,0.0301519]
[1760148108459,0.0498,111570.0,111530.0,0.03048755]
[1760148108722,0.0498,111560.0,111530.0,0.00033565]
[1760148108960,0.93467855,111570.0,111530.0,0.00033565]
[1760148109211,1.03249855,111570.0,111530.0,0.00033565]
[1760148109458,0.0498,111560.0,111530.0,0.00033565]
[1760148109728,0.93467855,111570.0,111530.0,0.03048755]
[1760148109951,0.0498,111560.0,111530.0,0.03048755]
[1760148110171,0.0498,111560.0,111530.0,0.00033565]
[1760148110406,0.88487855,111570.0,111530.0,0.00033565]
[1760148110618,0.93089855,111570.0,111530.0,0.00033565]
[1760148111677,0.88487855,111570.0,111530.0,0.00033565]
[1760148111889,0.93467855,111580.0,111530.0,0.00033565]
[1760148112300,0.88487855,111580.0,111530.0,0.00033565]
[1760148112503,1.00133039,111600.0,111540.0,0.0301519]
[1760148112704,0.95531039,111600.0,111560.0,0.0301519]
[1760148112906,0.11645184,111600.0,111560.0,0.0301519]
[1760148113260,0.2,111580.0,111560.0,0.0301519]
[1760148113661,0.2,111580.0,111550.0,0.0301519]
[1760148115242,0.2,111580.0,111550.0,0.21104325]
[1760148115769,0.2,111580.0,111570.0,0.3701519]
[1760148116657,0.2,111580.0,111560.0,0.47015189]
[1760148116786,0.2,111580.0,111560.0,0.3701519]
[1760148116988,0.2,111580.0,111560.0,0.37028755]
[1760148117818,0.2,111580.0,111560.0,0.03028755]
[1760148118017,0.2,111580.0,111560.0,0.07352932]
[1760148119073,0.2,111580.0,111560.0,0.06833841]
[1760148119308,0.2,111580.0,111560.0,0.04433444]
[1760148121376,0.2,111580.0,111570.0,0.00079376]
[1760148121782,0.2,111580.0,111570.0,0.02005007]
[1760148121989,0.2,111580.0,111570.0,0.09920593]
[1760148122199,0.2,111580.0,111570.0,0.15492046]
[1760148122509,0.2,111580.0,111570.0,0.13037852]
[1760148122679,0.2,111580.0,111570.0,0.38940821]
[1760148122880,0.2,111580.0,111570.0,0.41349113]
[1760148123702,0.2,111580.0,111570.0,0.4462956]
[1760148123909,0.2,111580.0,111570.0,0.47040211]
[1760148124305,0.2,111580.0,111570.0,0.42129561]
[1760148124917,0.2,111580.0,111570.0,0.44542808]
[1760148125121,0.2,111580.0,111570.0,0.42129561]
[1760148125951,0.2,111580.0,111570.0,0.38339917]
[1760148126363,0.19647779,111580.0,111570.0,0.41355107]
[1760148126976,0.19647779,111580.0,111570.0,0.38339917]
[1760148127583,0.19647779,111580.0,111570.0,0.41355107]
[1760148127943,0.19647779,111580.0,111570.0,0.44543847]
[1760148129938,0.19647779,111580.0,111570.0,0.46912671]
[1760148130386,0.19647779,111580.0,111570.0,0.56323929]
[1760148130602,0.12371326,111580.0,111570.0,0.57918299]
[1760148130845,0.12371326,111580.0,111570.0,0.59512669]
[1760148131261,0.12371326,111580.0,111570.0,0.72165965]
[1760148131467,0.09971326,111580.0,111570.0,0.70140334]
[1760148131676,0.09820631,111580.0,111570.0,0.67487037]
[1760148131893,0.09820631,111580.0,111570.0,0.70340334]
[1760148132764,0.09564431,111580.0,111570.0,0.70340334]
[1760148132966,0.09564431,111580.0,111570.0,0.70140334]
[1760148133187,0.09564431,111580.0,111570.0,0.67487037]
[1760148133414,0.09564431,111580.0,111570.0,0.70340334]
[1760148133630,0.09564431,111580.0,111570.0,0.67687037]
[1760148133885,0.09564431,111580.0,111570.0,0.67487037]
[1760148134306,0.07043184,111630.0,111620.0,0.0301519]
[1760148134520,0.07871833,111630.0,111620.0,0.0301519]
[1760148134937,0.00828649,111630.0,111620.0,0.05422164]
[1760148135124,0.00693983,111660.0,111620.0,0.05422164]
[1760148135370,0.00693983,111660.0,111620.0,0.0301519]
[1760148135586,0.00744424,111660.0,111620.0,0.05422164]
[1760148136476,0.00744424,111660.0,111630.0,0.00031052]
[1760148137808,0.00050441,111660.0,111630.0,0.00031052]
[1760148139051,0.00050441,111660.0,111640.0,0.0301519]
[1760148139277,0.00050441,111660.0,111650.0,0.00031046]
[1760148140592,0.00050441,111660.0,111640.0,0.0311519]
[1760148140804,0.00050441,111660.0,111640.0,0.0301519]
[1760148141017,0.00050441,111660.0,111650.0,0.001]
[1760148142349,0.00050441,111660.0,111650.0,0.0301519]
[1760148142558,0.00050441,111660.0,111650.0,0.20329136]
[1760148143441,0.00050441,111660.0,111650.0,0.22249166]
[1760148143653,0.07043184,111690.0,111680.0,0.0301519]
[1760148143874,0.07058308,111690.0,111680.0,0.5819422]
[1760148144336,0.00015124,111690.0,111680.0,0.5819422]
[1760148146195,0.00015124,111690.0,111680.0,0.5829422]
[1760148147013,0.00015124,111690.0,111680.0,0.2127903]
[1760148147210,0.00015124,111690.0,111680.0,0.19359]
[1760148147422,0.00015124,111690.0,111680.0,0.10527]
[1760148147826,0.20041124,111690.0,111680.0,0.001]
[1760148148262,0.94041124,111690.0,111680.0,0.001]
[1760148148412,0.94041124,111690.0,111650.0,0.03110851]
[1760148148615,0.04893,111680.0,111650.0,0.03110851]
[1760148148798,0.38908124,111690.0,111670.0,0.10427]
[1760148148999,0.04893,111680.0,111670.0,0.0743119]
[1760148149226,0.11021,111680.0,111670.0,0.0301519]
[1760148149464,0.04893,111680.0,111670.0,0.0301519]
[1760148149896,0.11021,111680.0,111670.0,0.0301519]
[1760148150307,0.20026,111680.0,111660.0,0.04416]
[1760148150508,0.13898,111670.0,111650.0,0.03110851]
[1760148150794,0.04893,111660.0,111650.0,0.03110851]
[1760148150994,0.11021,111660.0,111650.0,0.03110851]
[1760148151220,0.04893,111670.0,111650.0,0.09121851]
[1760148151425,0.93395979,111690.0,111670.0,0.0301519]
[1760148151598,0.00015124,111690.0,111680.0,0.01305]
[1760148151837,0.20041124,111690.0,111670.0,0.0432019]
[1760148152068,1.08528979,111690.0,111670.0,0.0432019]
[1760148152276,0.99523979,111690.0,111670.0,0.0432019]
[1760148152583,0.93395979,111690.0,111670.0,0.0432019]
[1760148152793,0.11021,111680.0,111670.0,0.0432019]
[1760148152997,1.02400979,111690.0,111670.0,0.07316]
[1760148153238,0.93395979,111690.0,111670.0,0.07316]
[1760148153438,0.04893,111680.0,111670.0,0.01305]
[1760148153645,0.93395979,111690.0,111670.0,0.07316]
[1760148154694,0.88502979,111690.0,111670.0,0.14843]
[1760148154929,0.93395979,111690.0,111670.0,0.07316]
[1760148155560,0.05721361,111690.0,111670.0,0.07316]
[1760148156008,0.00828361,111690.0,111680.0,0.07527]
[1760148156209,1.33380855,111710.0,111680.0,0.1655319]
[1760148156210,0.05721361,111710.0,111680.0,0.1655319]
[1760148156435,0.00828361,111710.0,111700.0,0.03111]
[1760148156636,0.94209216,111720.0,111700.0,0.16649]
[1760148156879,0.89316216,111720.0,111710.0,0.01305]
[1760148157108,0.89316216,111720.0,111710.0,0.07316]
[1760148157319,0.00828361,111720.0,111710.0,0.07316]
[1760148157523,0.00829532,111720.0,111710.0,0.07316]
[1760148157725,0.00829532,111730.0,111710.0,0.14843]
[1760148157941,0.05737662,111730.0,111710.0,0.07316]
[1760148158144,0.00844662,111730.0,111710.0,0.14843]
[1760148158350,0.0001513,111730.0,111710.0,0.14843]
[1760148158553,0.0001513,111730.0,111710.0,0.16766007]
[1760148158765,0.0001513,111730.0,111710.0,0.09239007]
[1760148158973,0.0001513,111730.0,111710.0,0.16766007]
[1760148159411,0.15504662,111730.0,111710.0,0.09239007]
[1760148159647,0.05614662,111730.0,111710.0,0.09239007]
[1760148160058,0.00844662,111730.0,111710.0,0.16766007]
[1760148160260,0.0001513,111730.0,111720.0,0.07527]
[1760148160416,0.00844662,111730.0,111720.0,0.07527]
[1760148160627,0.00844662,111730.0,111720.0,0.13889]
[1760148160852,0.00844662,111730.0,111720.0,0.06362]
[1760148161197,0.00844662,111730.0,111710.0,0.01305]
[1760148161399,0.00844662,111730.0,111710.0,0.10756389]
[1760148161740,0.21154,111720.0,111710.0,0.01924389]
[1760148162122,0.21983532,111720.0,111690.0,0.03111]
[1760148162295,0.0477,111710.0,111690.0,0.05035827]
[1760148162496,0.00829532,111710.0,111700.0,0.07667]
[1760148162698,0.00829532,111720.0,111700.0,0.15194]
[1760148162902,0.05614662,111730.0,111700.0,0.17118937]
[1760148163506,0.0477,111720.0,111700.0,0.03229937]
[1760148163751,0.05599532,111720.0,111700.0,0.03229937]
[1760148164584,0.15489532,111720.0,111700.0,0.03229937]
[1760148164758,0.05599532,111720.0,111700.0,0.03229937]
[1760148164958,0.11264,111710.0,111700.0,0.01305]
[1760148165112,0.12093532,111710.0,111700.0,0.01305]
[1760148165320,0.12093532,111710.0,111690.0,0.03111]
[1760148165595,0.12093532,111710.0,111690.0,0.0503684]
[1760148165770,0.12093532,111710.0,111700.0,0.15194]
[1760148165771,0.00829532,111710.0,111700.0,0.15194]
[1760148166011,0.0478513,111730.0,111710.0,0.0301519]
[1760148166012,0.00844662,111730.0,111710.0,0.0301519]
[1760148166219,0.00844662,111730.0,111720.0,0.2001519]
[1760148166476,0.00846561,111730.0,111720.0,0.2194103]
[1760148166681,0.0001513,111730.0,111720.0,0.24347688]
[1760148166901,0.0001513,111730.0,111720.0,0.27547815]
[1760148167116,0.0001513,111730.0,111720.0,0.76455103]
[1760148167365,0.0001513,111730.0,111720.0,0.68441028]